fUST/lending_fUST_20240221
["ID","MTS","AMOUNT","RATE_DAILY","PERIOD"]
[314639177,1708491049251,-500.0,0.00020564,2]
[314639178,1708491049260,-500.0,0.00020564,2]
[314639179,1708491049269,-500.0,0.00020564,2]
[314639180,1708491049278,-601.21,0.00020564,2]
[314639181,1708491049287,-500.0,0.00020565,2]
[314639182,1708491049296,-709.16,0.00020565,2]
[314639183,1708491049306,-176.70356709,0.00020565,2]
[314639184,1708491049315,-500.0,0.00020565,2]
[314639185,1708491049324,-694.8,0.00020565,2]
[314639186,1708491049333,-500.0,0.00020565,2]
[314639187,1708491049342,-300.0,0.00020589,2]
[314639188,1708491049351,-500.0,0.00020688,2]
[314639189,1708491049360,-31589.85,0.00020737,2]
[314639190,1708491049370,-500.0,0.00020737,2]
[314639191,1708491049379,-500.0,0.00020737,2]
[314639192,1708491049388,-500.0,0.00020737,2]
[314639193,1708491049398,-1389.02,0.00020737,2]
[314639194,1708491049407,-500.0,0.00020738,2]
[314639195,1708491049415,-1331.13,0.00020738,2]
[314639196,1708491049424,-586.52,0.00020738,2]
[314639197,1708491049434,-500.0,0.00020738,2]
[314639198,1708491049443,-500.0,0.00020738,2]
[314639199,1708491049452,-500.0,0.00020738,2]
[314639200,1708491049461,-1336.78,0.00020738,2]
[314639201,1708491049470,-4911.03,0.00020738,2]
[314639202,1708491049479,-1254.38,0.00020738,2]
[314639203,1708491049489,-576.17,0.00020738,2]
[314639204,1708491049498,-7828.60337634,0.00020738,2]
[314639205,1708491049512,-1922.40317652,0.00020738,2]
[314639319,1708491333933,438.65729785,0.000189,2]
[314639320,1708491856574,191.03875916,0.000189,2]
[314639321,1708491935033,433.66702286,0.000189,2]
[314639369,1708492232229,-213.08781164,0.00019177,2]
[314639371,1708492232241,-168.5348308,0.00019178,2]
[314639373,1708492232251,-620.00000129,0.00019802,2]
[314639375,1708492232261,-135.57769876,0.00019804,2]
[314639377,1708492232273,-164.42230124,0.00019804,2]
[314639379,1708492232283,-990.68798328,0.00019805,3]
[314639382,1708492232296,-2553.096596,0.00019805,3]
[314639385,1708492232321,-157.57542072,0.00019805,3]
[314639387,1708492232330,-460.84,0.00019805,3]
[314639389,1708492232339,-1668.51084651,0.00019805,3]
[314639391,1708492232351,-1348.34555049,0.00019805,3]
[314639394,1708492232364,-67.603603,0.00019805,3]
[314639396,1708492232373,-941.37726994,0.00019805,3]
[314639583,1708492238123,-155.76895667,0.00019807,2]
[314639584,1708492238134,-200.87720568,0.00019812,2]
[314639585,1708492238145,-500.0,0.00019814,2]
[314639586,1708492238155,-925.4220137,0.00019814,2]
[314639587,1708492238177,-347.8479863,0.00019814,2]
[314639588,1708492238187,-2620.91,0.00019814,2]
[314639589,1708492238196,-264937.02523993,0.00019815,2]
[314639590,1708492238206,-300.72254903,0.0001991,2]
[314639591,1708492238216,-310.22732775,0.00019911,2]
[314639592,1708492238226,-28957.36,0.00019911,2]
[314639593,1708492238235,-500.0,0.00019911,2]
[314639594,1708492238245,-500.0,0.00019911,2]
[314639595,1708492238257,-500.0,0.00019912,2]
[314639596,1708492238267,-1164.74,0.00019912,2]
[314639597,1708492238277,-500.96824877,0.00019912,2]
[314639598,1708492238287,-513.2,0.00019912,2]
[314639599,1708492238297,-500.81725587,0.00019912,2]
[314639600,1708492238307,-500.0,0.00019912,2]
[314639601,1708492238317,-608.49,0.00019912,2]
[314639602,1708492238327,-500.0,0.00019912,2]
[314639603,1708492238337,-341.61279409,0.00019912,2]
[314639604,1708492238346,-500.0,0.00019912,2]
[314639605,1708492238356,-500.0,0.00019912,2]
[314639606,1708492238366,-212.24061307,0.00019912,2]
[314639607,1708492238375,-501.00040851,0.00019912,2]
[314639608,1708492238385,-500.0,0.00019912,2]
[314639609,1708492238395,-504.15,0.00019912,2]
[314639610,1708492238405,-500.0,0.00019912,2]
[314639611,1708492238415,-500.0,0.00019912,2]
[314639612,1708492238425,-500.0,0.00019912,2]
[314639613,1708492238435,-1097.58,0.00019912,2]
[314639614,1708492238445,-500.0,0.00019912,2]
[314639615,1708492238454,-500.0,0.00019912,2]
[314639616,1708492238464,-500.0,0.00019912,2]
[314639617,1708492238474,-2186.91,0.00019912,2]
[314639618,1708492238484,-500.0,0.00019912,2]
[314639619,1708492238494,-578.11,0.00019912,2]
[314639620,1708492238503,-500.0,0.00019912,2]
[314639621,1708492238513,-500.0,0.00019912,2]
[314639622,1708492238523,-500.0,0.00019912,2]
[314639623,1708492238533,-500.0,0.00019912,2]
[314639624,1708492238543,-500.0,0.00019912,2]
[314639625,1708492238552,-500.0,0.00019912,2]
[314639626,1708492238562,-500.19416495,0.00019912,2]
[314639627,1708492238572,-744.59,0.00019912,2]
[314639628,1708492238582,-500.0,0.00019912,2]
[314639629,1708492238592,-500.0,0.00019912,2]
[314639630,1708492238602,-500.0,0.00019912,2]
[314639631,1708492238612,-500.0,0.00019912,2]
[314639632,1708492238622,-769.27,0.00019912,2]
[314639633,1708492238633,-500.0,0.00019912,2]
[314639634,1708492238643,-500.0,0.00019912,2]
[314639635,1708492238652,-151.0,0.00019912,2]
[314639636,1708492238662,-1239.72,0.00019912,2]
[314639637,1708492238672,-500.0,0.00019912,2]
[314639638,1708492238681,-2669.94,0.00019912,2]
[314639639,1708492238691,-500.0,0.00019912,2]
[314639640,1708492238701,-446.72914921,0.00019912,2]
[314639641,1708492238711,-500.0,0.00019912,2]
[314639642,1708492238721,-500.0,0.00019912,2]
[314639643,1708492238731,-500.0,0.00019912,2]
[314639644,1708492238740,-500.0,0.00019912,2]
[314639645,1708492238750,-500.0,0.00019912,2]
[314639646,1708492238759,-1180.55,0.00019912,2]
[314639647,1708492238769,-533.73,0.00019912,2]
[314639648,1708492238778,-3249.54,0.00019912,2]
[314639649,1708492238788,-1225.38,0.00019912,2]
[314639650,1708492238797,-500.0,0.00019912,2]
[314639651,1708492238806,-4501.77,0.00019912,2]
[314639652,1708492238816,-500.0,0.00019912,2]
[314639653,1708492238825,-500.0,0.00019912,2]
[314639654,1708492238834,-3091.99,0.00019912,2]
[314639655,1708492238843,-213.63256075,0.00019912,2]
[314639656,1708492238852,-500.0,0.00019912,2]
[314639657,1708492238861,-500.0,0.00019912,2]
[314639658,1708492238870,-500.0,0.00019912,2]
[314639659,1708492238879,-500.0,0.00019912,2]
[314639660,1708492238888,-500.0,0.00019912,2]
[314639661,1708492238899,-500.0,0.00019912,2]
[314639662,1708492238908,-400.32969916,0.00019912,2]
[314639663,1708492238917,-1446.0,0.00019912,2]
[314639664,1708492238927,-500.0,0.00019912,2]
[314639665,1708492238936,-36414.37,0.00019912,2]
[314639666,1708492238945,-500.0,0.00019912,2]
[314639667,1708492238956,-2677.51,0.00019912,2]
[314639668,1708492238966,-536.8,0.00019912,2]
[314639669,1708492238976,-500.0,0.00019912,2]
[314639670,1708492238986,-500.0,0.00019912,2]
[314639671,1708492238996,-753.62,0.00019912,2]
[314639672,1708492239006,-4219.01,0.00019912,2]
[314639673,1708492239015,-500.23506128,0.00019912,2]
[314639674,1708492239025,-1699.89,0.00019912,2]
[314639675,1708492239035,-500.0,0.00019912,2]
[314639676,1708492239045,-567.71,0.00019912,2]
[314639677,1708492239054,-500.0,0.00019912,2]
[314639678,1708492239063,-628.59224466,0.00019912,2]
[314639679,1708492239076,-500.0,0.00019912,2]
[314639680,1708492239085,-500.0,0.00019912,2]
[314639681,1708492239094,-500.0,0.00019912,2]
[314639682,1708492239104,-1270.81,0.00019912,2]
[314639683,1708492239115,-500.0,0.00019912,2]
[314639684,1708492239124,-500.0,0.00019912,2]
[314639685,1708492239134,-803.22,0.00019912,2]
[314639686,1708492239143,-500.0,0.00019912,2]
[314639687,1708492239153,-500.0,0.00019912,2]
[314639688,1708492239164,-500.0,0.00019912,2]
[314639689,1708492239173,-500.0,0.00019912,2]
[314639690,1708492239182,-500.0,0.00019912,2]
[314639691,1708492239192,-500.0,0.00019912,2]
[314639692,1708492239201,-2064.49,0.00019912,2]
[314639693,1708492239210,-500.0,0.00019912,2]
[314639694,1708492239220,-500.0,0.00019912,2]
[314639695,1708492239229,-660.32,0.00019912,2]
[314639696,1708492239240,-500.0,0.00019912,2]
[314639697,1708492239249,-500.0,0.00019912,2]
[314639698,1708492239258,-500.0,0.00019912,2]
[314639699,1708492239267,-1000.0,0.00019912,2]
[314639700,1708492239277,-500.0,0.00019912,2]
[314639701,1708492239286,-500.0,0.00019912,2]
[314639702,1708492239295,-500.0,0.00019912,2]
[314639703,1708492239305,-8790.48840533,0.00019913,2]
[314639704,1708492239315,-500.0,0.00019913,2]
[314639705,1708492239324,-2957.67,0.00019913,2]
[314639706,1708492239334,-500.0,0.00019913,2]
[314639707,1708492239343,-14194.49,0.00019913,2]
[314639708,1708492239352,-500.0,0.00019913,2]
[314639709,1708492239362,-20619.78,0.00019913,2]
[314639710,1708492239371,-5824.7,0.00019913,2]
[314639711,1708492239380,-500.0,0.00019913,2]
[314639712,1708492239390,-500.0,0.00019913,2]
[314639713,1708492239399,-4312.53,0.00019913,2]
[314639714,1708492239410,-500.0,0.00019913,2]
[314639715,1708492239419,-1044.8,0.00019913,2]
[314639716,1708492239429,-500.0,0.00019913,2]
[314639717,1708492239438,-500.0,0.00019913,2]
[314639718,1708492239447,-557.38,0.00019913,2]
[314639719,1708492239457,-5302.09,0.00019913,2]
[314639720,1708492239466,-500.0,0.00019913,2]
[314639721,1708492239475,-7789.32,0.00019913,2]
[314639722,1708492239485,-500.0,0.00019913,2]
[314639723,1708492239494,-500.0,0.00019914,2]
[314639724,1708492239503,-500.0,0.00019914,2]
[314639725,1708492239512,-543.01,0.00019914,2]
[314639726,1708492239522,-574.45,0.00019914,2]
[314639727,1708492239531,-1426.73,0.00019914,2]
[314639728,1708492239541,-583.65,0.00019914,2]
[314639729,1708492239551,-500.0,0.00019914,2]
[314639730,1708492239560,-5826.71,0.00019914,2]
[314639731,1708492239569,-1000.0,0.00019914,2]
[314639732,1708492239578,-500.0,0.00019914,2]
[314639733,1708492239588,-500.0,0.00019914,2]
[314639734,1708492239597,-20985.8,0.00019914,2]
[314639735,1708492239607,-500.0,0.00019914,2]
[314639736,1708492239616,-4052.29,0.00019914,2]
[314639737,1708492239626,-500.0,0.00019914,2]
[314639738,1708492239636,-500.0,0.00019914,2]
[314639739,1708492239645,-500.0,0.00019914,2]
[314639740,1708492239655,-500.0,0.00019914,2]
[314639741,1708492239665,-500.0,0.00019914,2]
[314639742,1708492239674,-500.0,0.00019914,2]
[314639743,1708492239684,-4175.23,0.00019914,2]
[314639744,1708492239694,-500.0,0.00019914,2]
[314639745,1708492239703,-582.67,0.00019914,2]
[314639746,1708492239715,-500.0,0.00019914,2]
[314639747,1708492239724,-5750.42,0.00019914,2]
[314639748,1708492239733,-2799.61,0.00019914,2]
[314639749,1708492239742,-6456.96,0.00019914,2]
[314639750,1708492239753,-500.0,0.00019915,2]
[314639751,1708492239762,-1581.17,0.00019915,2]
[314639752,1708492239772,-573.44,0.00019915,2]
[314639753,1708492239781,-500.0,0.00019915,2]
[314639754,1708492239791,-171.80031986,0.00019915,2]
[314639755,1708492239800,-500.0,0.00019915,2]
[314639756,1708492239810,-500.0,0.00019915,2]
[314639757,1708492239819,-500.0,0.00019915,2]
[314639758,1708492239828,-394.55034756,0.00019915,2]
[314639759,1708492239837,-500.0,0.00019915,2]
[314639760,1708492239847,-500.0,0.00019915,2]
[314639761,1708492239856,-500.0,0.00019915,2]
[314639762,1708492239866,-741.72,0.00019915,2]
[314639763,1708492239875,-378.01689686,0.00019915,2]
[314639764,1708492239884,-500.0,0.00019915,2]
[314639765,1708492239893,-1124.55,0.00019915,2]
[314639766,1708492239902,-500.0,0.00019915,2]
[314639767,1708492239912,-589.18654455,0.00019915,2]
[314639768,1708492239921,-500.0,0.00019915,2]
[314639769,1708492239931,-500.0,0.00019915,2]
[314639770,1708492239940,-500.0,0.00019916,2]
[314639771,1708492239950,-500.0,0.00019916,2]
[314639772,1708492239959,-500.0,0.00019916,2]
[314639773,1708492239968,-500.0,0.00019916,2]
[314639774,1708492239977,-500.0,0.00019916,2]
[314639775,1708492239987,-507.66,0.00019916,2]
[314639776,1708492239996,-500.0,0.00019916,2]
[314639777,1708492240005,-579.4,0.00019916,2]
[314639778,1708492240014,-228.6045625,0.00019916,2]
[314639779,1708492240024,-500.0,0.00019916,2]
[314639780,1708492240033,-1141.36,0.00019916,2]
[314639781,1708492240043,-500.0,0.00019916,2]
[314639782,1708492240052,-500.0,0.00019916,2]
[314639783,1708492240061,-500.0,0.00019916,2]
[314639784,1708492240073,-500.0,0.00019916,2]
[314639785,1708492240082,-629.55043623,0.00019916,2]
[314639786,1708492240091,-208.08306404,0.00019916,2]
[314639787,1708492240101,-500.0,0.00019916,2]
[314639788,1708492240111,-500.0,0.00019916,2]
[314639789,1708492240120,-1508.62,0.00019916,2]
[314639790,1708492240130,-500.0,0.00019916,2]
[314639791,1708492240139,-638.0,0.00019916,2]
[314639792,1708492240150,-634.53,0.00019916,2]
[314639793,1708492240158,-500.0,0.00019916,2]
[314639794,1708492240168,-500.0,0.00019916,2]
[314639795,1708492240177,-500.0,0.00019916,2]
[314639796,1708492240186,-220.78431812,0.00019916,2]
[314639797,1708492240195,-616.72,0.00019916,2]
[314639798,1708492240205,-500.0,0.00019916,2]
[314639799,1708492240215,-500.0,0.00019916,2]
[314639800,1708492240224,-300.64650961,0.00019916,2]
[314639801,1708492240233,-500.0,0.00019916,2]
[314639802,1708492240256,-500.0,0.00019916,2]
[314639803,1708492240267,-500.0,0.00019916,2]
[314639804,1708492240276,-500.0,0.00019916,2]
[314639805,1708492240286,-571.29,0.00019916,2]
[314639806,1708492240296,-249.55499383,0.00019916,2]
[314639808,1708492240305,-500.0,0.00019916,2]
[314639809,1708492240315,-579.70645628,0.00019916,2]
[314639810,1708492240324,-500.0,0.00019916,2]
[314639811,1708492240334,-500.0,0.00019916,2]
[314639812,1708492240343,-177.59133849,0.00019916,2]
[314639813,1708492240352,-763.99,0.00019916,2]
[314639814,1708492240361,-500.0,0.00019916,2]
[314639815,1708492240371,-826.4,0.00019916,2]
[314639816,1708492240380,-500.0,0.00019916,2]
[314639817,1708492240389,-500.0,0.00019916,2]
[314639818,1708492240398,-2513.48,0.00019916,2]
[314639819,1708492240407,-500.0,0.00019916,2]
[314639820,1708492240416,-500.0,0.00019916,2]
[314639821,1708492240426,-500.0,0.00019916,2]
[314639822,1708492240435,-500.0,0.00019916,2]
[314639823,1708492240444,-500.0,0.00019916,2]
[314639824,1708492240453,-819.54,0.00019916,2]
[314639826,1708492240463,-500.0,0.00019916,2]
[314639827,1708492240472,-500.0,0.00019916,2]
[314639828,1708492240481,-500.0,0.00019916,2]
[314639829,1708492240490,-500.0,0.00019916,2]
[314639830,1708492240500,-512.99170163,0.00019916,2]
[314639831,1708492240510,-500.0,0.00019916,2]
[314639833,1708492240519,-500.0,0.00019916,2]
[314639835,1708492240528,-657.04,0.00019916,2]
[314639841,1708492240735,-592.46,0.00019916,2]
[314639842,1708492240745,-500.0,0.00019916,2]
[314639843,1708492240755,-500.0,0.00019916,2]
[314639844,1708492240764,-500.0,0.00019916,2]
[314639845,1708492240773,-500.0,0.00019916,2]
[314639846,1708492240783,-500.0,0.00019916,2]
[314639847,1708492240792,-451.59431048,0.00019916,2]
[314639848,1708492240801,-197.01034508,0.00019916,2]
[314639849,1708492240811,-500.0,0.00019916,2]
[314639850,1708492240822,-1224.55,0.00019916,2]
[314639851,1708492240831,-541.09161503,0.00019916,2]
[314639852,1708492240840,-200.0,0.00019916,2]
[314639853,1708492240849,-500.0,0.00019916,2]
[314639854,1708492240858,-692.99,0.00019916,2]
[314639855,1708492240867,-500.0,0.00019916,2]
[314639856,1708492240876,-500.0,0.00019916,2]
[314639857,1708492240885,-500.0,0.00019916,2]
[314639858,1708492240894,-338.45851319,0.00019916,2]
[314639859,1708492240903,-596.73,0.00019916,2]
[314639860,1708492240912,-500.14712861,0.00019916,2]
[314639861,1708492240922,-500.22785792,0.00019916,2]
[314639862,1708492240932,-159.5270364,0.00019916,2]
[314639863,1708492240941,-461.00189497,0.00019916,2]
[314639864,1708492240951,-650.07,0.00019916,2]
[314639865,1708492240962,-500.0,0.00019916,2]
[314639866,1708492240971,-500.0,0.00019916,2]
[314639867,1708492240981,-636.9,0.00019916,2]
[314639868,1708492240990,-500.0,0.00019916,2]
[314639869,1708492240999,-500.61050603,0.00019916,2]
[314639870,1708492241009,-500.23754538,0.00019916,2]
[314639871,1708492241018,-503.33303702,0.00019917,2]
[314639872,1708492241028,-500.0,0.00019917,2]
[314639873,1708492241037,-500.0,0.00019917,2]
[314639874,1708492241047,-500.0,0.00019917,2]
[314639875,1708492241057,-203.99362304,0.00019917,2]
[314639876,1708492241068,-500.0,0.00019917,2]
[314639877,1708492241079,-500.0,0.00019917,2]
[314639878,1708492241088,-500.0,0.00019917,2]
[314639879,1708492241098,-500.0,0.00019917,2]
[314639880,1708492241108,-518.9188772,0.00019917,2]
[314639881,1708492241118,-551.11,0.00019917,2]
[314639882,1708492241128,-300.0,0.00020077,2]
[314639883,1708492241137,-200.87720568,0.00020086,2]
[314639884,1708492241147,-500.0,0.00020088,2]
[314639885,1708492241156,-1273.27,0.00020088,2]
[314639886,1708492241166,-2620.91,0.00020088,2]
[314639887,1708492241176,-28957.36,0.00020185,2]
[314639888,1708492241186,-500.0,0.00020185,2]
[314639889,1708492241195,-500.0,0.00020185,2]
[314639890,1708492241205,-500.0,0.00020186,2]
[314639891,1708492241214,-1164.74,0.00020186,2]
[314639892,1708492241223,-513.2,0.00020186,2]
[314639893,1708492241232,-500.0,0.00020186,2]
[314639894,1708492241242,-190.5502052,0.00020186,2]
[314639895,1708492241252,-404.21681105,0.00020186,2]
[314639896,1708492241261,-500.0,0.00020186,2]
[314639897,1708492241270,-500.0,0.00020186,2]
[314639898,1708492241279,-504.15,0.00020186,2]
[314639899,1708492241289,-500.0,0.00020186,2]
[314639900,1708492241298,-500.0,0.00020186,2]
[314639901,1708492241307,-500.0,0.00020186,2]
[314639902,1708492241317,-1097.58,0.00020186,2]
[314639903,1708492241326,-500.0,0.00020186,2]
[314639904,1708492241334,-500.0,0.00020186,2]
[314639905,1708492241344,-511.50970154,0.00020186,2]
[314639906,1708492241353,-2186.91,0.00020186,2]
[314639908,1708492241362,-500.0,0.00020186,2]
[314639910,1708492241372,-578.11,0.00020186,2]
[314639912,1708492241381,-500.0,0.00020186,2]
[314639914,1708492241390,-500.0,0.00020186,2]
[314639915,1708492241399,-500.0,0.00020186,2]
[314639917,1708492241408,-500.0,0.00020186,2]
[314639918,1708492241417,-500.0,0.00020186,2]
[314639919,1708492241426,-500.0,0.00020186,2]
[314639920,1708492241435,-744.59,0.00020186,2]
[314639921,1708492241444,-500.0,0.00020186,2]
[314639922,1708492241453,-210.77810017,0.00020186,2]
[314639923,1708492241463,-500.0,0.00020186,2]
[314639924,1708492241472,-500.0,0.00020186,2]
[314639925,1708492241481,-769.27,0.00020186,2]
[314639926,1708492241491,-500.0,0.00020186,2]
[314639927,1708492241500,-500.0,0.00020186,2]
[314639928,1708492241509,-151.0,0.00020186,2]
[314639929,1708492241519,-1239.72,0.00020186,2]
[314639930,1708492241528,-500.0,0.00020186,2]
[314639931,1708492241537,-2669.94,0.00020186,2]
[314639932,1708492241546,-500.0,0.00020186,2]
[314639933,1708492241556,-500.0,0.00020186,2]
[314639934,1708492241565,-541.40990493,0.00020186,2]
[314639935,1708492241574,-500.0,0.00020186,2]
[314639936,1708492241583,-500.0,0.00020186,2]
[314639937,1708492241592,-572.61891776,0.00020186,2]
[314639938,1708492241601,-1180.55,0.00020186,2]
[314639939,1708492241611,-533.73,0.00020186,2]
[314639940,1708492241620,-3249.54,0.00020186,2]
[314639941,1708492241629,-1225.38,0.00020186,2]
[314639942,1708492241638,-500.0,0.00020186,2]
[314639943,1708492241648,-4501.77,0.00020186,2]
[314639944,1708492241656,-500.0,0.00020186,2]
[314639945,1708492241665,-500.0,0.00020186,2]
[314639946,1708492241675,-3091.99,0.00020186,2]
[314639947,1708492241684,-500.0,0.00020186,2]
[314639948,1708492241694,-500.0,0.00020186,2]
[314639949,1708492241703,-500.0,0.00020186,2]
[314639950,1708492241712,-500.0,0.00020186,2]
[314639951,1708492241721,-448.37102176,0.00020186,2]
[314639952,1708492241731,-1446.0,0.00020186,2]
[314639953,1708492241740,-36414.37,0.00020186,2]
[314639954,1708492241750,-500.0,0.00020186,2]
[314639955,1708492241759,-2677.51,0.00020186,2]
[314639956,1708492241768,-536.8,0.00020186,2]
[314639957,1708492241778,-500.0,0.00020186,2]
[314639958,1708492241787,-753.62,0.00020186,2]
[314639959,1708492241796,-4219.01,0.00020186,2]
[314639960,1708492241806,-1699.89,0.00020186,2]
[314639961,1708492241815,-567.71,0.00020186,2]
[314639962,1708492241825,-500.0,0.00020186,2]
[314639963,1708492241834,-500.0,0.00020186,2]
[314639964,1708492241843,-1270.81,0.00020186,2]
[314639965,1708492241852,-500.0,0.00020186,2]
[314639966,1708492241861,-500.0,0.00020186,2]
[314639967,1708492241870,-803.22,0.00020186,2]
[314639968,1708492241879,-500.0,0.00020186,2]
[314639969,1708492241889,-500.0,0.00020186,2]
[314639970,1708492241898,-633.52071918,0.00020186,2]
[314639971,1708492241907,-500.0,0.00020186,2]
[314639972,1708492241916,-2064.49,0.00020186,2]
[314639973,1708492241925,-500.0,0.00020186,2]
[314639974,1708492241934,-660.32,0.00020186,2]
[314639975,1708492241943,-500.0,0.00020186,2]
[314639976,1708492241952,-500.0,0.00020186,2]
[314639977,1708492241962,-1000.0,0.00020186,2]
[314639978,1708492241971,-500.0,0.00020186,2]
[314639979,1708492241980,-500.0,0.00020186,2]
[314639980,1708492241989,-500.0,0.00020186,2]
[314639981,1708492241999,-500.0,0.00020187,2]
[314639982,1708492242009,-2957.67,0.00020187,2]
[314639983,1708492242018,-500.0,0.00020187,2]
[314639984,1708492242027,-14194.49,0.00020187,2]
[314639985,1708492242036,-500.0,0.00020187,2]
[314639986,1708492242045,-20619.78,0.00020187,2]
[314639987,1708492242054,-5824.7,0.00020187,2]
[314639988,1708492242065,-500.0,0.00020187,2]
[314639989,1708492242077,-500.0,0.00020187,2]
[314639990,1708492242086,-4312.53,0.00020187,2]
[314639991,1708492242096,-500.0,0.00020187,2]
[314639992,1708492242105,-1044.8,0.00020187,2]
[314639993,1708492242115,-500.0,0.00020187,2]
[314639994,1708492242124,-178.48792406,0.00020187,2]
[314639995,1708492242134,-557.38,0.00020187,2]
[314639996,1708492242143,-5302.09,0.00020187,2]
[314639997,1708492242153,-500.0,0.00020187,2]
[314639998,1708492242163,-7789.32,0.00020187,2]
[314639999,1708492242172,-500.0,0.00020187,2]
[314640000,1708492242181,-500.0,0.00020188,2]
[314640001,1708492242190,-500.0,0.00020188,2]
[314640002,1708492242199,-543.01,0.00020188,2]
[314640003,1708492242208,-574.45,0.00020188,2]
[314640004,1708492242217,-1426.73,0.00020188,2]
[314640005,1708492242225,-583.65,0.00020188,2]
[314640006,1708492242235,-500.0,0.00020188,2]
[314640007,1708492242245,-5826.71,0.00020188,2]
[314640008,1708492242255,-1000.0,0.00020188,2]
[314640009,1708492242265,-500.0,0.00020188,2]
[314640010,1708492242274,-500.0,0.00020188,2]
[314640011,1708492242283,-20985.8,0.00020188,2]
[314640012,1708492242292,-500.0,0.00020188,2]
[314640013,1708492242301,-4052.29,0.00020188,2]
[314640014,1708492242310,-500.0,0.00020188,2]
[314640015,1708492242319,-500.0,0.00020188,2]
[314640016,1708492242328,-500.0,0.00020188,2]
[314640017,1708492242337,-500.0,0.00020188,2]
[314640018,1708492242346,-500.0,0.00020188,2]
[314640019,1708492242355,-500.0,0.00020188,2]
[314640020,1708492242364,-4175.23,0.00020188,2]
[314640021,1708492242373,-500.0,0.00020188,2]
[314640022,1708492242382,-582.67,0.00020188,2]
[314640023,1708492242392,-500.0,0.00020188,2]
[314640024,1708492242400,-5750.42,0.00020188,2]
[314640025,1708492242409,-2799.61,0.00020188,2]
[314640026,1708492242418,-6456.96,0.00020188,2]
[314640027,1708492242427,-500.0,0.00020189,2]
[314640028,1708492242437,-1581.17,0.00020189,2]
[314640029,1708492242445,-573.44,0.00020189,2]
[314640030,1708492242454,-500.0,0.00020189,2]
[314640031,1708492242463,-500.0,0.00020189,2]
[314640032,1708492242472,-369.51077671,0.00020189,2]
[314640033,1708492242481,-500.0,0.00020189,2]
[314640034,1708492242490,-500.0,0.00020189,2]
[314640035,1708492242499,-500.0,0.00020189,2]
[314640036,1708492242508,-500.0,0.00020189,2]
[314640037,1708492242517,-741.72,0.00020189,2]
[314640038,1708492242526,-1124.55,0.00020189,2]
[314640039,1708492242535,-500.0,0.00020189,2]
[314640040,1708492242544,-500.0,0.00020189,2]
[314640041,1708492242553,-500.0,0.00020189,2]
[314640042,1708492242562,-500.0,0.0002019,2]
[314640043,1708492242570,-500.0,0.0002019,2]
[314640044,1708492242579,-500.0,0.0002019,2]
[314640045,1708492242588,-500.0,0.0002019,2]
[314640046,1708492242597,-500.0,0.0002019,2]
[314640047,1708492242606,-507.66,0.0002019,2]
[314640048,1708492242615,-500.0,0.0002019,2]
[314640049,1708492242623,-579.4,0.0002019,2]
[314640050,1708492242633,-241.39870029,0.0002019,2]
[314640051,1708492242642,-1141.36,0.0002019,2]